[Event "Titled Tuesday Blitz May 4 2021"]
[White "Nguyen, Quoc Hy"]
[Black "Pinto, Daniel"]
[WhiteFideId "12410853"]
[BlackFideId "3303144"]
[WhiteElo "1975"]
[BlackElo "1936"]
[Result "0-1"]
[Round "01"]
[TimeControl "180+1"]
[Date "2021.05.04"]
[WhiteClock "0:00:09"]
[BlackClock "0:00:03"]

1. d4 {[%clk 0:03:00]}  Nf6 {[%clk 0:02:59]} 2. c4 {[%clk 0:03:01]}  e6 {[%clk 0:02:59]} 3. Nc3 {[%clk 0:03:01]}  Bb4 {[%clk 0:02:58]} 4. g3 {[%clk 0:02:59]}  O-O {[%clk 0:02:55]} 5. Bg2 {[%clk 0:03:00]}  d5 {[%clk 0:02:55]} 6. a3 {[%clk 0:02:42]}  Be7 {[%clk 0:02:44]} 7. Nf3 {[%clk 0:02:39]}  dxc4 {[%clk 0:02:30]} 8. O-O {[%clk 0:02:38]}  c5 {[%clk 0:02:29]} 9. dxc5 {[%clk 0:02:37]}  Bxc5 {[%clk 0:02:24]} 10. Ne5 {[%clk 0:02:32]}  Nbd7 {[%clk 0:02:22]} 11. Nxc4 {[%clk 0:02:31]}  Nb6 {[%clk 0:02:11]} 12. Be3 {[%clk 0:01:29]}  Bxe3 {[%clk 0:02:03]} 13. Nxe3 {[%clk 0:01:30]}  Rb8 {[%clk 0:01:45]} 14. Qb3 {[%clk 0:01:13]}  Bd7 {[%clk 0:01:31]} 15. Rfd1 {[%clk 0:01:09]}  Qe7 {[%clk 0:01:30]} 16. Nb5 {[%clk 0:00:58]}  a6 {[%clk 0:01:11]} 17. Nd6 {[%clk 0:00:56]}  Nbd5 {[%clk 0:01:03]} 18. Nxd5 {[%clk 0:00:37]}  exd5 {[%clk 0:00:27]} 19. Qb6 {[%clk 0:00:27]}  Bc6 {[%clk 0:00:20]} 20. Nf5 {[%clk 0:00:24]}  Qe5 {[%clk 0:00:19]} 21. Nd4 {[%clk 0:00:23]}  Bd7 {[%clk 0:00:15]} 22. Rac1 {[%clk 0:00:21]}  Rfd8 {[%clk 0:00:12]} 23. Rc7 {[%clk 0:00:20]}  Ba4 {[%clk 0:00:12]} 24. Rd2 {[%clk 0:00:18]}  Ne4 {[%clk 0:00:08]} 25. Rd3 {[%clk 0:00:14]}  Bb5 {[%clk 0:00:03]} 26. Nxb5 {[%clk 0:00:13]}  axb5 {[%clk 0:00:03]} 27. Rc2 {[%clk 0:00:12]}  Qf5 {[%clk 0:00:02]} 28. Bxe4 {[%clk 0:00:11]}  Qxe4 {[%clk 0:00:02]} 29. Qxb5 {[%clk 0:00:11]}  d4 {[%clk 0:00:02]} 30. Qb6 {[%clk 0:00:10]}  Rbc8 {[%clk 0:00:01]} 31. Rxc8 {[%clk 0:00:09]}  Rxc8 {[%clk 0:00:02]} 32. Qxd4 {[%clk 0:00:09]}  Rc1+ {[%clk 0:00:02]} 33. Rd1 {[%clk 0:00:08]}  Qxd4 {[%clk 0:00:03]} 34. Rxc1 {[%clk 0:00:09]}  g6 {[%clk 0:00:03]} 35. Rc3 {[%clk 0:00:09]}  Kg7 {[%clk 0:00:03]} 36. e3 {[%clk 0:00:09]}  Qd1+ {[%clk 0:00:03]} 37. Kg2 {[%clk 0:00:09]}  Qd5+ {[%clk 0:00:04]} 38. Kg1 {[%clk 0:00:09]}  Qd1+ {[%clk 0:00:03]} 39. Kg2 {[%clk 0:00:09]}  Qd2 {[%clk 0:00:03]} 0-1


[Site "https://www.chess.com"]

[Event "Titled Tuesday Blitz May 4 2021"]
[White "Nosacheva, Mariya"]
[Black "Rakotomaharo, Fy Antenaina"]
[WhiteFideId "34111422"]
[BlackFideId "13100050"]
[WhiteElo "2035"]
[BlackElo "2378"]
[Result "0-1"]
[Round "01"]
[TimeControl "180+1"]
[Date "2021.05.04"]
[WhiteClock "0:00:20"]
[BlackClock "0:00:32"]

1. e4 {[%clk 0:03:00]}  c5 {[%clk 0:02:58]} 2. Nf3 {[%clk 0:03:01]}  e6 {[%clk 0:02:57]} 3. d4 {[%clk 0:03:01]}  cxd4 {[%clk 0:02:58]} 4. Nxd4 {[%clk 0:03:02]}  Nc6 {[%clk 0:02:58]} 5. Nc3 {[%clk 0:03:01]}  Nf6 {[%clk 0:02:58]} 6. Bg5 {[%clk 0:02:58]}  Bb4 {[%clk 0:02:54]} 7. Nxc6 {[%clk 0:02:33]}  bxc6 {[%clk 0:02:53]} 8. Bd3 {[%clk 0:02:34]}  h6 {[%clk 0:02:51]} 9. Bf4 {[%clk 0:02:22]}  d5 {[%clk 0:02:40]} 10. e5 {[%clk 0:02:17]}  Nd7 {[%clk 0:02:40]} 11. O-O {[%clk 0:02:15]}  Nc5 {[%clk 0:02:28]} 12. Be2 {[%clk 0:02:11]}  Bxc3 {[%clk 0:02:21]} 13. bxc3 {[%clk 0:02:10]}  O-O {[%clk 0:02:22]} 14. Be3 {[%clk 0:02:09]}  Ne4 {[%clk 0:02:20]} 15. Qe1 {[%clk 0:01:52]}  Qa5 {[%clk 0:01:57]} 16. c4 {[%clk 0:01:53]}  Qxe1 {[%clk 0:01:55]} 17. Rfxe1 {[%clk 0:01:52]}  Ba6 {[%clk 0:01:56]} 18. Bd3 {[%clk 0:01:37]}  Nc3 {[%clk 0:01:23]} 19. Bd4 {[%clk 0:01:31]}  Na4 {[%clk 0:01:17]} 20. cxd5 {[%clk 0:01:25]}  Bxd3 {[%clk 0:01:17]} 21. cxd3 {[%clk 0:01:25]}  c5 {[%clk 0:01:17]} 22. Be3 {[%clk 0:01:21]}  exd5 {[%clk 0:01:18]} 23. Rec1 {[%clk 0:01:14]}  Rfc8 {[%clk 0:01:11]} 24. Rab1 {[%clk 0:01:11]}  Rc7 {[%clk 0:01:11]} 25. f4 {[%clk 0:01:10]}  Rac8 {[%clk 0:01:09]} 26. Kf2 {[%clk 0:01:09]}  d4 {[%clk 0:01:04]} 27. Bd2 {[%clk 0:01:07]}  c4 {[%clk 0:01:04]} 28. Rb4 {[%clk 0:01:01]}  Nc5 {[%clk 0:00:58]} 29. Rcxc4 {[%clk 0:00:47]}  Nxd3+ {[%clk 0:00:57]} 30. Ke2 {[%clk 0:00:48]}  Rxc4 {[%clk 0:00:55]} 31. Kxd3 {[%clk 0:00:47]}  Rxb4 {[%clk 0:00:52]} 32. Bxb4 {[%clk 0:00:48]}  Rc1 {[%clk 0:00:49]} 33. Kxd4 {[%clk 0:00:34]}  Rg1 {[%clk 0:00:49]} 34. g3 {[%clk 0:00:32]}  Rg2 {[%clk 0:00:49]} 35. f5 {[%clk 0:00:32]}  Rxh2 {[%clk 0:00:46]} 36. a3 {[%clk 0:00:30]}  Rg2 {[%clk 0:00:45]} 37. e6 {[%clk 0:00:26]}  fxe6 {[%clk 0:00:43]} 38. fxe6 {[%clk 0:00:25]}  Rxg3 {[%clk 0:00:43]} 39. e7 {[%clk 0:00:20]}  Kf7 {[%clk 0:00:43]} 40. Ke5 {[%clk 0:00:20]}  h5 {[%clk 0:00:41]} 41. Kd6 {[%clk 0:00:20]}  Rd3+ {[%clk 0:00:40]} 42. Kc7 {[%clk 0:00:20]}  h4 {[%clk 0:00:40]} 43. Bd6 {[%clk 0:00:20]}  Ke8 {[%clk 0:00:32]} 0-1


[Site "https://www.chess.com"]

[Event "Titled Tuesday Blitz May 4 2021"]
[White "Nozdrachev, Leonid"]
[Black "Fernandez, Michael"]
[WhiteFideId "24113433"]
[BlackFideId "5803560"]
[WhiteElo "2246"]
[BlackElo "2110"]
[Result "1-0"]
[Round "01"]
[TimeControl "180+1"]
[Date "2021.05.04"]
[WhiteClock "0:00:10"]
[BlackClock "0:00:13"]

1. e4 {[%clk 0:02:57]}  c5 {[%clk 0:02:53]} 2. c3 {[%clk 0:02:56]}  d5 {[%clk 0:02:48]} 3. exd5 {[%clk 0:02:56]}  Qxd5 {[%clk 0:02:48]} 4. d4 {[%clk 0:02:57]}  cxd4 {[%clk 0:02:48]} 5. cxd4 {[%clk 0:02:56]}  Nc6 {[%clk 0:02:48]} 6. Nf3 {[%clk 0:02:55]}  e5 {[%clk 0:02:48]} 7. Nc3 {[%clk 0:02:46]}  Bb4 {[%clk 0:02:48]} 8. Be2 {[%clk 0:02:45]}  Nxd4 {[%clk 0:02:36]} 9. O-O {[%clk 0:02:32]}  Bxc3 {[%clk 0:02:32]} 10. bxc3 {[%clk 0:02:27]}  Nxf3+ {[%clk 0:02:20]} 11. Bxf3 {[%clk 0:02:25]}  Qxd1 {[%clk 0:02:21]} 12. Rxd1 {[%clk 0:02:26]}  Ne7 {[%clk 0:02:05]} 13. Ba3 {[%clk 0:02:24]}  Nc6 {[%clk 0:02:01]} 14. Rab1 {[%clk 0:02:20]}  f6 {[%clk 0:01:50]} 15. h4 {[%clk 0:02:15]}  Kf7 {[%clk 0:01:39]} 16. Bd5+ {[%clk 0:02:13]}  Kg6 {[%clk 0:01:36]} 17. Be4+ {[%clk 0:02:00]}  Kf7 {[%clk 0:01:30]} 18. h5 {[%clk 0:01:51]}  Rd8 {[%clk 0:01:11]} 19. Bxh7 {[%clk 0:01:38]}  b6 {[%clk 0:00:55]} 20. Bg6+ {[%clk 0:01:31]}  Ke6 {[%clk 0:00:55]} 21. Rxd8 {[%clk 0:01:24]}  Nxd8 {[%clk 0:00:55]} 22. Rd1 {[%clk 0:01:25]}  Nb7 {[%clk 0:00:48]} 23. Be4 {[%clk 0:01:23]}  Rb8 {[%clk 0:00:40]} 24. g4 {[%clk 0:01:20]}  Nc5 {[%clk 0:00:34]} 25. Bf5+ {[%clk 0:00:58]}  Ke7 {[%clk 0:00:34]} 26. Rb1 {[%clk 0:00:42]}  Bxf5 {[%clk 0:00:25]} 27. Bxc5+ {[%clk 0:00:41]}  bxc5 {[%clk 0:00:22]} 28. Rxb8 {[%clk 0:00:40]}  Bxg4 {[%clk 0:00:23]} 29. Rb7+ {[%clk 0:00:40]}  Ke6 {[%clk 0:00:23]} 30. Rxg7 {[%clk 0:00:36]}  Bxh5 {[%clk 0:00:24]} 31. Rxa7 {[%clk 0:00:37]}  Kd5 {[%clk 0:00:24]} 32. Ra6 {[%clk 0:00:35]}  f5 {[%clk 0:00:23]} 33. Rb6 {[%clk 0:00:30]}  Bd1 {[%clk 0:00:19]} 34. Rb2 {[%clk 0:00:22]}  Kc4 {[%clk 0:00:18]} 35. Rd2 {[%clk 0:00:20]}  Ba4 {[%clk 0:00:13]} 36. Re2 {[%clk 0:00:19]}  e4 {[%clk 0:00:13]} 37. Re3 {[%clk 0:00:18]}  Bc6 {[%clk 0:00:12]} 38. Kf1 {[%clk 0:00:17]}  f4 {[%clk 0:00:12]} 39. Rh3 {[%clk 0:00:17]}  f3 {[%clk 0:00:11]} 40. Rh5 {[%clk 0:00:16]}  Bb5 {[%clk 0:00:10]} 41. Ke1 {[%clk 0:00:15]}  Kxc3 {[%clk 0:00:08]} 42. Rxc5+ {[%clk 0:00:15]}  Bc4 {[%clk 0:00:09]} 43. a4 {[%clk 0:00:09]}  Kb4 {[%clk 0:00:09]} 44. Rxc4+ {[%clk 0:00:09]}  Kxc4 {[%clk 0:00:09]} 45. a5 {[%clk 0:00:07]}  Kb5 {[%clk 0:00:09]} 46. Kd2 {[%clk 0:00:07]}  Kxa5 {[%clk 0:00:10]} 47. Ke3 {[%clk 0:00:07]}  Kb5 {[%clk 0:00:11]} 48. Kxe4 {[%clk 0:00:08]}  Kc5 {[%clk 0:00:11]} 49. Kxf3 {[%clk 0:00:08]}  Kd6 {[%clk 0:00:12]} 50. Kf4 {[%clk 0:00:09]}  Ke6 {[%clk 0:00:13]} 51. Kg5 {[%clk 0:00:09]}  Kf7 {[%clk 0:00:13]} 52. Kf5 {[%clk 0:00:09]}  Ke7 {[%clk 0:00:13]} 53. f3 {[%clk 0:00:09]}  Kf7 {[%clk 0:00:13]} 54. f4 {[%clk 0:00:10]}  Ke7 {[%clk 0:00:13]} 55. Kg6 {[%clk 0:00:10]}  Ke6 {[%clk 0:00:13]} 56. f5+ {[%clk 0:00:10]} 1-0


[Site "https://www.chess.com"]

[Event "Titled Tuesday Blitz May 4 2021"]
[White "Ognean, Mihnea-Ionut"]
[Black "Holt, Conrad"]
[WhiteFideId "1232347"]
[BlackFideId "2034387"]
[WhiteElo "2012"]
[BlackElo "2586"]
[Result "1/2-1/2"]
[Round "01"]
[TimeControl "180+1"]
[Date "2021.05.04"]
[WhiteClock "0:00:12"]
[BlackClock "0:00:08"]

1. e4 {[%clk 0:03:00]}  e6 {[%clk 0:02:59]} 2. d4 {[%clk 0:03:00]}  d5 {[%clk 0:02:59]} 3. Nd2 {[%clk 0:03:01]}  c5 {[%clk 0:02:58]} 4. Ngf3 {[%clk 0:03:00]}  cxd4 {[%clk 0:02:57]} 5. Nxd4 {[%clk 0:03:00]}  Nf6 {[%clk 0:02:57]} 6. exd5 {[%clk 0:02:59]}  Nxd5 {[%clk 0:02:57]} 7. N2f3 {[%clk 0:02:56]}  Bb4+ {[%clk 0:02:56]} 8. Bd2 {[%clk 0:02:54]}  O-O {[%clk 0:02:56]} 9. Bxb4 {[%clk 0:02:52]}  Nxb4 {[%clk 0:02:56]} 10. c3 {[%clk 0:02:46]}  e5 {[%clk 0:02:49]} 11. cxb4 {[%clk 0:02:11]}  exd4 {[%clk 0:02:48]} 12. Be2 {[%clk 0:02:12]}  Qe7 {[%clk 0:02:37]} 13. O-O {[%clk 0:02:09]}  Rd8 {[%clk 0:02:37]} 14. a3 {[%clk 0:02:05]}  Nc6 {[%clk 0:02:34]} 15. Ne1 {[%clk 0:02:03]}  Bf5 {[%clk 0:02:15]} 16. Bd3 {[%clk 0:01:58]}  Qg5 {[%clk 0:02:04]} 17. Bxf5 {[%clk 0:01:51]}  Qxf5 {[%clk 0:02:04]} 18. Nd3 {[%clk 0:01:52]}  Rac8 {[%clk 0:01:53]} 19. Re1 {[%clk 0:01:50]}  Re8 {[%clk 0:01:53]} 20. Qd2 {[%clk 0:01:48]}  h6 {[%clk 0:01:50]} 21. h3 {[%clk 0:01:47]}  Re6 {[%clk 0:01:45]} 22. Rxe6 {[%clk 0:01:47]}  Qxe6 {[%clk 0:01:41]} 23. Re1 {[%clk 0:01:46]}  Qd5 {[%clk 0:01:40]} 24. Qf4 {[%clk 0:01:18]}  Kh8 {[%clk 0:00:25]} 25. h4 {[%clk 0:01:15]}  Kg8 {[%clk 0:00:24]} 26. Kh2 {[%clk 0:01:12]}  Rd8 {[%clk 0:00:20]} 27. Qe4 {[%clk 0:01:07]}  Qxe4 {[%clk 0:00:19]} 28. Rxe4 {[%clk 0:01:08]}  Kf8 {[%clk 0:00:18]} 29. Kg3 {[%clk 0:01:07]}  Rd5 {[%clk 0:00:14]} 30. Kf3 {[%clk 0:00:48]}  f6 {[%clk 0:00:13]} 31. g3 {[%clk 0:00:48]}  Kf7 {[%clk 0:00:13]} 32. Re1 {[%clk 0:00:41]}  Rd8 {[%clk 0:00:08]} 33. b5 {[%clk 0:00:33]}  Na5 {[%clk 0:00:07]} 34. Rc1 {[%clk 0:00:31]}  Rd7 {[%clk 0:00:07]} 35. b4 {[%clk 0:00:26]}  Nb3 {[%clk 0:00:07]} 36. Rc2 {[%clk 0:00:27]}  Re7 {[%clk 0:00:04]} 37. Nc5 {[%clk 0:00:21]}  Nxc5 {[%clk 0:00:03]} 38. bxc5 {[%clk 0:00:22]}  Ke6 {[%clk 0:00:03]} 39. Ke4 {[%clk 0:00:20]}  Rd7 {[%clk 0:00:02]} 40. c6 {[%clk 0:00:19]}  bxc6 {[%clk 0:00:03]} 41. bxc6 {[%clk 0:00:20]}  Rc7 {[%clk 0:00:04]} 42. Kxd4 {[%clk 0:00:20]}  Kd6 {[%clk 0:00:04]} 43. Ke4 {[%clk 0:00:21]}  Rxc6 {[%clk 0:00:04]} 44. Rxc6+ {[%clk 0:00:21]}  Kxc6 {[%clk 0:00:05]} 45. Kf5 {[%clk 0:00:19]}  Kb5 {[%clk 0:00:06]} 46. Kg6 {[%clk 0:00:20]}  Ka4 {[%clk 0:00:07]} 47. Kxg7 {[%clk 0:00:21]}  Kxa3 {[%clk 0:00:08]} 48. Kxh6 {[%clk 0:00:20]}  a5 {[%clk 0:00:08]} 49. Kg6 {[%clk 0:00:20]}  Kb3 {[%clk 0:00:08]} 50. h5 {[%clk 0:00:21]}  a4 {[%clk 0:00:09]} 51. h6 {[%clk 0:00:21]}  a3 {[%clk 0:00:09]} 52. h7 {[%clk 0:00:22]}  a2 {[%clk 0:00:10]} 53. h8=Q {[%clk 0:00:22]}  a1=Q {[%clk 0:00:10]} 54. Qxf6 {[%clk 0:00:22]}  Qh1 {[%clk 0:00:10]} 55. Qe6+ {[%clk 0:00:22]}  Kc3 {[%clk 0:00:10]} 56. Qe5+ {[%clk 0:00:22]}  Kd3 {[%clk 0:00:10]} 57. Qf5+ {[%clk 0:00:22]}  Ke2 {[%clk 0:00:10]} 58. Kg5 {[%clk 0:00:21]}  Qh8 {[%clk 0:00:08]} 59. f4 {[%clk 0:00:17]}  Qg8+ {[%clk 0:00:07]} 60. Qg6 {[%clk 0:00:17]}  Qd8+ {[%clk 0:00:07]} 61. Kg4 {[%clk 0:00:17]}  Qc8+ {[%clk 0:00:07]} 62. Kh4 {[%clk 0:00:17]}  Kf2 {[%clk 0:00:07]} 63. f5 {[%clk 0:00:16]}  Qh8+ {[%clk 0:00:07]} 64. Qh5 {[%clk 0:00:16]}  Qd4+ {[%clk 0:00:07]} 65. Qg4 {[%clk 0:00:16]}  Qh8+ {[%clk 0:00:07]} 66. Kg5 {[%clk 0:00:16]}  Qg7+ {[%clk 0:00:07]} 67. Kh4 {[%clk 0:00:10]}  Qh8+ {[%clk 0:00:07]} 68. Qh5 {[%clk 0:00:10]}  Qd4+ {[%clk 0:00:07]} 69. Kg5 {[%clk 0:00:10]}  Kxg3 {[%clk 0:00:07]} 70. Qg6 {[%clk 0:00:08]}  Qe3+ {[%clk 0:00:06]} 71. Kh5+ {[%clk 0:00:08]}  Kh2 {[%clk 0:00:06]} 72. Qg5 {[%clk 0:00:08]}  Qe8+ {[%clk 0:00:05]} 73. Kh6 {[%clk 0:00:08]}  Qh8+ {[%clk 0:00:06]} 74. Kg6 {[%clk 0:00:08]}  Qg8+ {[%clk 0:00:06]} 75. Kf6 {[%clk 0:00:08]}  Qd8+ {[%clk 0:00:06]} 76. Kg6 {[%clk 0:00:09]}  Qg8+ {[%clk 0:00:07]} 77. Kh5 {[%clk 0:00:09]}  Qh7+ {[%clk 0:00:07]} 78. Qh6 {[%clk 0:00:10]}  Qxf5+ {[%clk 0:00:07]} 79. Kh4 {[%clk 0:00:10]}  Qh3+ {[%clk 0:00:07]} 80. Kg5 {[%clk 0:00:11]}  Qxh6+ {[%clk 0:00:08]} 81. Kxh6 {[%clk 0:00:12]} 1/2-1/2


[Site "https://www.chess.com"]

[Event "Titled Tuesday Blitz May 4 2021"]
[White "Omariev, Maksim"]
[Black "Jarovinsky, Alexey"]
[WhiteFideId "4193423"]
[BlackFideId "14115131"]
[WhiteElo "2398"]
[BlackElo "2446"]
[Result "0-1"]
[Round "01"]
[TimeControl "180+1"]
[Date "2021.05.04"]
[WhiteClock "0:00:01"]
[BlackClock "0:00:02"]

1. g4 {[%clk 0:03:00]}  h5 {[%clk 0:02:55]} 2. g5 {[%clk 0:02:48]}  h4 {[%clk 0:02:53]} 3. d4 {[%clk 0:02:47]}  d5 {[%clk 0:02:52]} 4. c4 {[%clk 0:02:47]}  e6 {[%clk 0:02:47]} 5. Nc3 {[%clk 0:02:47]}  dxc4 {[%clk 0:02:43]} 6. Nf3 {[%clk 0:02:43]}  a6 {[%clk 0:02:30]} 7. a4 {[%clk 0:01:59]}  Nc6 {[%clk 0:02:27]} 8. Bf4 {[%clk 0:01:45]}  Bd6 {[%clk 0:02:24]} 9. Bxd6 {[%clk 0:01:43]}  cxd6 {[%clk 0:02:19]} 10. d5 {[%clk 0:01:42]}  Na5 {[%clk 0:02:16]} 11. dxe6 {[%clk 0:01:16]}  Bxe6 {[%clk 0:02:01]} 12. Nd4 {[%clk 0:01:16]}  Ne7 {[%clk 0:01:52]} 13. Bg2 {[%clk 0:01:11]}  Qd7 {[%clk 0:01:39]} 14. Rc1 {[%clk 0:01:01]}  h3 {[%clk 0:01:10]} 15. Bf3 {[%clk 0:01:00]}  Nec6 {[%clk 0:01:06]} 16. Nd5 {[%clk 0:00:45]}  Nxd4 {[%clk 0:00:49]} 17. Qxd4 {[%clk 0:00:42]}  O-O {[%clk 0:00:31]} 18. Nb6 {[%clk 0:00:40]}  Qe7 {[%clk 0:00:30]} 19. Rc3 {[%clk 0:00:28]}  Rad8 {[%clk 0:00:23]} 20. Nd5 {[%clk 0:00:09]}  Qxg5 {[%clk 0:00:21]} 21. Be4 {[%clk 0:00:08]}  Nb3 {[%clk 0:00:13]} 22. Qxc4 {[%clk 0:00:05]}  Nc5 {[%clk 0:00:09]} 23. Bf3 {[%clk 0:00:04]}  b5 {[%clk 0:00:07]} 24. axb5 {[%clk 0:00:04]}  axb5 {[%clk 0:00:08]} 25. Qxb5 {[%clk 0:00:04]}  Bxd5 {[%clk 0:00:07]} 26. Bxd5 {[%clk 0:00:05]}  Qxd5 {[%clk 0:00:07]} 27. Rg1 {[%clk 0:00:04]}  g6 {[%clk 0:00:06]} 28. Qb4 {[%clk 0:00:04]}  Rb8 {[%clk 0:00:04]} 29. Qh4 {[%clk 0:00:02]}  Rxb2 {[%clk 0:00:03]} 30. Rc1 {[%clk 0:00:01]}  Qd2+ {[%clk 0:00:02]} 0-1


[Site "https://www.chess.com"]

[Event "Titled Tuesday Blitz May 4 2021"]
[White "Papasimakopoulos, Alexandros"]
[Black "Nastore, Pavel-Alexandru"]
[WhiteFideId "4244125"]
[BlackFideId "1255002"]
[WhiteElo "2352"]
[BlackElo "1809"]
[Result "1-0"]
[Round "01"]
[TimeControl "180+1"]
[Date "2021.05.04"]
[WhiteClock "0:01:42"]
[BlackClock "0:00:04"]

1. d4 {[%clk 0:03:00]}  Nf6 {[%clk 0:02:16]} 2. c4 {[%clk 0:03:00]}  c6 {[%clk 0:02:15]} 3. Nc3 {[%clk 0:03:00]}  d5 {[%clk 0:02:13]} 4. cxd5 {[%clk 0:03:01]}  cxd5 {[%clk 0:02:13]} 5. Bf4 {[%clk 0:03:00]}  Nc6 {[%clk 0:02:13]} 6. e3 {[%clk 0:03:01]}  a6 {[%clk 0:02:09]} 7. Bd3 {[%clk 0:03:00]}  e6 {[%clk 0:02:09]} 8. Rc1 {[%clk 0:03:00]}  Bd6 {[%clk 0:02:08]} 9. Bxd6 {[%clk 0:02:59]}  Qxd6 {[%clk 0:02:08]} 10. f4 {[%clk 0:03:00]}  O-O {[%clk 0:02:07]} 11. Nf3 {[%clk 0:03:00]}  Nd7 {[%clk 0:01:57]} 12. O-O {[%clk 0:02:45]}  f6 {[%clk 0:01:34]} 13. Qe1 {[%clk 0:02:42]}  Re8 {[%clk 0:01:24]} 14. Qh4 {[%clk 0:02:42]}  Nf8 {[%clk 0:01:24]} 15. Na4 {[%clk 0:02:31]}  b5 {[%clk 0:01:06]} 16. Nc5 {[%clk 0:02:26]}  Ra7 {[%clk 0:00:41]} 17. g4 {[%clk 0:02:13]}  e5 {[%clk 0:00:34]} 18. fxe5 {[%clk 0:02:11]}  fxe5 {[%clk 0:00:34]} 19. Bf5 {[%clk 0:01:57]}  Bxf5 {[%clk 0:00:32]} 20. gxf5 {[%clk 0:01:58]}  Rf7 {[%clk 0:00:30]} 21. Ng5 {[%clk 0:01:56]}  Rf6 {[%clk 0:00:26]} 22. Nge6 {[%clk 0:01:51]}  Nxe6 {[%clk 0:00:21]} 23. fxe6 {[%clk 0:01:51]}  Rg6+ {[%clk 0:00:16]} 24. Kh1 {[%clk 0:01:49]}  Ne7 {[%clk 0:00:15]} 25. Qf2 {[%clk 0:01:43]}  Rf6 {[%clk 0:00:14]} 26. Qg3 {[%clk 0:01:43]}  Nf5 {[%clk 0:00:14]} 27. Qxe5 {[%clk 0:01:41]}  Qxe5 {[%clk 0:00:03]} 28. dxe5 {[%clk 0:01:42]}  Rff8 {[%clk 0:00:03]} 29. Nd7 {[%clk 0:01:42]}  Rxe6 {[%clk 0:00:03]} 30. Nxf8 {[%clk 0:01:42]}  Nxe3 {[%clk 0:00:04]} 1-0


[Site "https://www.chess.com"]

[Event "Titled Tuesday Blitz May 4 2021"]
[White "Perez Rodriguez, Jennifer"]
[Black "Timmermans, Mark"]
[WhiteFideId "3507831"]
[BlackFideId "1026399"]
[WhiteElo "2170"]
[BlackElo "2460"]
[Result "0-1"]
[Round "01"]
[TimeControl "180+1"]
[Date "2021.05.04"]
[WhiteClock "0:01:42"]
[BlackClock "0:02:40"]

1. e4 {[%clk 0:02:28]}  e5 {[%clk 0:02:59]} 2. Nc3 {[%clk 0:02:26]}  Nf6 {[%clk 0:02:58]} 3. f4 {[%clk 0:02:26]}  d5 {[%clk 0:02:57]} 4. fxe5 {[%clk 0:02:26]}  Nxe4 {[%clk 0:02:57]} 5. Qf3 {[%clk 0:02:26]}  f5 {[%clk 0:02:53]} 6. exf6 {[%clk 0:02:23]}  Nxf6 {[%clk 0:02:52]} 7. d4 {[%clk 0:02:17]}  Bb4 {[%clk 0:02:51]} 8. Bg5 {[%clk 0:02:15]}  O-O {[%clk 0:02:47]} 9. Bd3 {[%clk 0:02:07]}  Bxc3+ {[%clk 0:02:43]} 10. bxc3 {[%clk 0:02:06]}  Qe8+ {[%clk 0:02:44]} 11. Ne2 {[%clk 0:02:05]}  Bg4 {[%clk 0:02:44]} 12. Qe3 {[%clk 0:01:57]}  Nbd7 {[%clk 0:02:42]} 13. O-O {[%clk 0:01:54]}  Qxe3+ {[%clk 0:02:40]} 14. Bxe3 {[%clk 0:01:53]}  Rae8 {[%clk 0:02:40]} 15. h3 {[%clk 0:01:42]} 0-1


[Site "https://www.chess.com"]

[Event "Titled Tuesday Blitz May 4 2021"]
[White "Perske, Thore"]
[Black "Jian, Alex"]
[WhiteFideId "12902195"]
[BlackFideId "30901022"]
[WhiteElo "2315"]
[BlackElo "2084"]
[Result "1-0"]
[Round "01"]
[TimeControl "180+1"]
[Date "2021.05.04"]
[WhiteClock "0:00:11"]
[BlackClock "0:00:02"]

1. e4 {[%clk 0:03:00]}  c5 {[%clk 0:02:59]} 2. Nf3 {[%clk 0:03:00]}  Nc6 {[%clk 0:02:59]} 3. g3 {[%clk 0:02:59]}  g6 {[%clk 0:02:58]} 4. Bg2 {[%clk 0:03:00]}  Bg7 {[%clk 0:02:58]} 5. O-O {[%clk 0:03:00]}  d6 {[%clk 0:02:59]} 6. d3 {[%clk 0:03:01]}  e6 {[%clk 0:02:59]} 7. c3 {[%clk 0:03:00]}  Nge7 {[%clk 0:02:58]} 8. d4 {[%clk 0:03:00]}  cxd4 {[%clk 0:02:57]} 9. cxd4 {[%clk 0:03:00]}  d5 {[%clk 0:02:56]} 10. e5 {[%clk 0:03:00]}  O-O {[%clk 0:02:56]} 11. Nc3 {[%clk 0:03:00]}  Nf5 {[%clk 0:02:53]} 12. Bf4 {[%clk 0:02:48]}  b6 {[%clk 0:02:52]} 13. Qd2 {[%clk 0:02:41]}  Ba6 {[%clk 0:02:45]} 14. Rfc1 {[%clk 0:02:40]}  Na5 {[%clk 0:02:43]} 15. b3 {[%clk 0:02:38]}  Rc8 {[%clk 0:02:42]} 16. h4 {[%clk 0:02:32]}  h5 {[%clk 0:02:34]} 17. Bh3 {[%clk 0:02:28]}  Ne7 {[%clk 0:02:22]} 18. Rc2 {[%clk 0:02:12]}  Nec6 {[%clk 0:02:22]} 19. Bf1 {[%clk 0:02:02]}  Bxf1 {[%clk 0:02:19]} 20. Rxf1 {[%clk 0:02:01]}  Nb4 {[%clk 0:02:16]} 21. Rcc1 {[%clk 0:02:01]}  Qd7 {[%clk 0:01:49]} 22. Bh6 {[%clk 0:01:54]}  Rc7 {[%clk 0:01:42]} 23. Bxg7 {[%clk 0:01:50]}  Kxg7 {[%clk 0:01:42]} 24. Ne2 {[%clk 0:01:37]}  Nbc6 {[%clk 0:01:20]} 25. Qg5 {[%clk 0:00:49]}  Qe7 {[%clk 0:01:19]} 26. Qf4 {[%clk 0:00:48]}  Rfc8 {[%clk 0:01:09]} 27. Kg2 {[%clk 0:00:41]}  Nb4 {[%clk 0:01:08]} 28. Rxc7 {[%clk 0:00:32]}  Rxc7 {[%clk 0:01:08]} 29. a3 {[%clk 0:00:30]}  Nc2 {[%clk 0:01:00]} 30. g4 {[%clk 0:00:18]}  hxg4 {[%clk 0:00:47]} 31. Qxg4 {[%clk 0:00:19]}  Rc8 {[%clk 0:00:31]} 32. h5 {[%clk 0:00:19]}  Rh8 {[%clk 0:00:30]} 33. Nf4 {[%clk 0:00:18]}  Nxb3 {[%clk 0:00:14]} 34. hxg6 {[%clk 0:00:16]}  Rg8 {[%clk 0:00:12]} 35. Nh5+ {[%clk 0:00:12]}  Kf8 {[%clk 0:00:11]} 36. g7+ {[%clk 0:00:11]}  Ke8 {[%clk 0:00:05]} 37. Nf6+ {[%clk 0:00:11]}  Qxf6 {[%clk 0:00:04]} 38. exf6 {[%clk 0:00:12]}  Na5 {[%clk 0:00:02]} 39. Rc1 {[%clk 0:00:11]} 1-0


[Site "https://www.chess.com"]